{"text_format":"1","workbook":"xlsx","n_sheets":8,"sheets":["Notes","Pupil Data Form","Datasheet","Ethnicity Codes","Country of Birth & Nationality","Language Codes","SEN Codes","Proficiency"],"not_rendered":{"charts":0,"images":1,"macros":1,"external_links":1,"defined_names":14,"comments":0,"pivot_tables":0},"unopened":[],"bounds":{"document_bytes":16777216,"sheet_cells":100000,"rows_first":2000,"rows_last":500,"rows_between":2000,"halvings":0,"cell_chars":16384,"cell_head_chars":4096},"cells_cut":0,"cells_raw":0,"read":"whole","date_system":"1900"}

{"sheet":"Notes","index":0,"n_rows":30,"n_cols":1,"rows_kept":30,"cut":false,"hidden":false,"merged":[[29,0,32,8],[4,0,5,8],[10,0,14,8],[16,0,19,8],[21,0,23,8],[26,0,27,8]]}
["NOTES ON USING THE PUPIL DATASHEET GENERATOR"]
[]
[]
["This Excel file contains data on the pupils transferring to your school next September."]
["The information has been collated from primary schools, admission records and other LA held datasets. "]
[]
[]
["There are two worksheets:"]
[]
["The Datasheet"]
["This includes core contextual information for every Y6 student in an Ealing primary school taken from the spring school census (green columns), together with details of other agency involvement / additional support (yellow columns) with an accepted or offered Y7 place at your school.  Other agency involvement / additional support data is now being sourced internally where available rather than directly from primary schools."]
[]
[]
[]
[]
[]
["Please note that other agency involvement columns will only be populated for anyone engaging in an Ealing service.  Children transferring from primary schools in other borough's are also included on the spreadsheet but only with the data held on the admissions database or matched in from the Autumn school census (sourced from Get Information About Pupils). "]
[]
[]
[]
[]
["The data also includes KS1 end of year 2 teacher assessments for all in and out borough children for whom we are able to match data on GIAP. \nKS2 statutory assessment data will be available in v2.0 of the ETF released in July."]
[]
[]
[]
["The Pupil Data Form"]
["There is also a Pupil Data Form which is linked to the Datasheet and can be used to print off information for an individual pupil on a side of A4."]
[]
[]
["Each pupil has a number in the datasheet. By typing this number into the red box in the top right hand corner of the Pupil Data Form, the form will change to present the information for the required individual pupil. This can then be printed and used during the primary school visit. You can print all data forms by pressing the 'Print all' button. This will not work if you cannot enable macros."]

{"sheet":"Pupil Data Form","index":1,"n_rows":41,"n_cols":15,"rows_kept":41,"cut":false,"hidden":false,"merged":[[6,10,7,10],[4,2,4,3],[4,6,4,8],[29,6,29,7],[27,0,27,1],[27,3,27,4],[27,6,27,8],[28,6,28,7],[6,2,6,3]]}
["PRIMARY/SECONDARY TRANSITION: PUPIL DATA SHEET"]
[]
[null,null,null,null,null,null,null,null,null,null,null,null,"Pupil Number:",null,1]
[]
["Pupil Name:",null,{"$f":"VLOOKUP($O$3,Datasheet!$A$2:$K$334,11,FALSE)","v":{"$error":"#N/A"}},null,"Primary School:",null,{"$f":"VLOOKUP($O$3,Datasheet!$A$2:$K$334,3,FALSE)","v":{"$error":"#N/A"}},null,null,"Postcode:",{"$f":"IF(ISBLANK(VLOOKUP($O$3,Datasheet!$A$2:$L$334,40,FALSE)),\"\",VLOOKUP($O$3,Datasheet!$A$2:$ZA$334,40,FALSE))","v":{"$error":"#N/A"}}]
[]
["DOB:",null,{"$f":"VLOOKUP($O$3,Datasheet!$A$2:$K$334,12,FALSE)","v":{"$error":"#N/A"}},null,"Sec Destination:",null,{"$f":"VLOOKUP($O$3,Datasheet!$A$2:$K$334,5,FALSE)","v":{"$error":"#N/A"}},null,null,"Home LA:",{"$f":"IF(ISBLANK(VLOOKUP($O$3,Datasheet!$A$2:$L$334,41,FALSE)),\"\",VLOOKUP($O$3,Datasheet!$A$2:$ZA$334,41,FALSE))","v":{"$error":"#N/A"}}]
["UPN:",null,{"$f":"IF(ISBLANK(VLOOKUP($O$3,Datasheet!$A$2:$L$334,8,FALSE)),\"\",VLOOKUP($O$3,Datasheet!$A$2:$ZA$334,8,FALSE))","v":{"$error":"#N/A"}},null,"Preference Rank:",null,{"$f":"VLOOKUP($O$3,Datasheet!$A$2:$K$334,6,FALSE)","v":{"$error":"#N/A"}}]
["Former/Alternative UPN:",null,{"$f":"IF(ISBLANK(VLOOKUP($O$3,Datasheet!$A$2:$L$334,42,FALSE)),\"\",VLOOKUP($O$3,Datasheet!$A$2:$ZA$334,42,FALSE))","v":{"$error":"#N/A"}},null,"Admissions Status:",null,{"$f":"VLOOKUP($O$3,Datasheet!$A$2:$K$334,7,FALSE)","v":{"$error":"#N/A"}}]
[]
["Pupil Characteristics"]
["Gender:",null,null,{"$f":"VLOOKUP($O$3,Datasheet!$A$2:$K$334,13,FALSE)","v":{"$error":"#N/A"}},null,null,"FSM:",null,null,{"$f":"VLOOKUP($O$3,Datasheet!$A$2:$K$334,15,FALSE)","v":{"$error":"#N/A"}}]
["Ethnicity:",null,null,{"$f":"IF(ISBLANK(VLOOKUP($O$3,Datasheet!$A$2:$K$334,17,2)),\"\",VLOOKUP(VLOOKUP($O$3,Datasheet!$A$2:$K$334,17,2),'Ethnicity Codes'!A4:B102,2,FALSE))","v":{"$error":"#N/A"}},null,null,"Pupil premium (FSM6):",null,null,{"$f":"VLOOKUP($O$3,Datasheet!$A$2:$K$334,16,FALSE)","v":{"$error":"#N/A"}}]
["Date of Entry:",null,null,{"$f":"IF(ISBLANK(VLOOKUP($O$3,Datasheet!$A$2:$K$334,14,FALSE)),\"\",VLOOKUP($O$3,Datasheet!$A$2:$K$334,14,FALSE))","v":{"$error":"#N/A"}},null,null,"Traveller:",null,null,{"$f":"VLOOKUP($O$3,Datasheet!$A$2:$K$334,23,FALSE)","v":{"$error":"#N/A"}}]
["SEN Status:",null,null,{"$f":"IF(ISBLANK(VLOOKUP($O$3,Datasheet!$A$2:$K$334,18,FALSE)),\"\",VLOOKUP(VLOOKUP($O$3,Datasheet!$A$2:$K$334,18,FALSE),'SEN Codes'!A4:B19,2,FALSE))","v":{"$error":"#N/A"}}]
["SEN Primary Need:",null,null,{"$f":"IF(ISBLANK(VLOOKUP($O$3,Datasheet!$A$2:$K$334,19,FALSE)),\"\",VLOOKUP(VLOOKUP($O$3,Datasheet!$A$2:$K$334,19,FALSE),'SEN Codes'!A4:B19,2,FALSE))","v":{"$error":"#N/A"}},null,null,"Attendance (full prev. yr)",null,null,{"$f":"IF(ISBLANK(VLOOKUP($O$3,Datasheet!$A$2:$K$334,21,FALSE)),\"\",VLOOKUP($O$3,Datasheet!$A$2:$K$334,21,FALSE))","v":{"$error":"#N/A"}}]
["First Language:",null,null,{"$f":"IF(ISBLANK(VLOOKUP($O$3,Datasheet!$A$2:$K$334,20,FALSE)),\"\",VLOOKUP(VLOOKUP($O$3,Datasheet!$A$2:$K$334,20,FALSE),'Language Codes'!A4:C325,3,FALSE))","v":{"$error":"#N/A"}},null,null,"Attendance (Aut Term)",null,null,{"$f":"IF(ISBLANK(VLOOKUP($O$3,Datasheet!$A$2:$K$334,22,FALSE)),\"\",VLOOKUP($O$3,Datasheet!$A$2:$K$334,22,FALSE))","v":{"$error":"#N/A"}}]
[]
["KS1 Teacher Assessments"]
["Reading:",{"$f":"VLOOKUP($O$3,Datasheet!$A$2:$K$334,24,FALSE)","v":{"$error":"#N/A"}},null,"Writing:",{"$f":"VLOOKUP($O$3,Datasheet!$A$2:$K$334,25,FALSE)","v":{"$error":"#N/A"}}]
["Maths:",{"$f":"VLOOKUP($O$3,Datasheet!$A$2:$K$334,26,FALSE)","v":{"$error":"#N/A"}},null,"Science:",{"$f":"VLOOKUP($O$3,Datasheet!$A$2:$K$334,27,FALSE)","v":{"$error":"#N/A"}}]
[]
["KS2 Provisional Teacher Assessments"]
["Writing:",{"$f":"VLOOKUP($O$3,Datasheet!$A$2:$K$334,28,FALSE)","v":{"$error":"#N/A"}}]
["Maths:",{"$f":"VLOOKUP($O$3,Datasheet!$A$2:$K$334,29,FALSE)","v":{"$error":"#N/A"}}]
[]
["KS2 Provisional Test Outcomes"]
["Reading",null,null,"Maths",null,null,"GPS"]
["Scaled Score:",{"$f":"VLOOKUP($O$3,Datasheet!$A$2:$K$334,30,FALSE)","v":{"$error":"#N/A"}},null,"Scaled Score:",{"$f":"VLOOKUP($O$3,Datasheet!$A$2:$K$334,32,FALSE)","v":{"$error":"#N/A"}},null,"Scaled Score:",null,{"$f":"VLOOKUP($O$3,Datasheet!$A$2:$K$334,34,FALSE)","v":{"$error":"#N/A"}}]
["Outcome: ",{"$f":"VLOOKUP($O$3,Datasheet!$A$2:$K$334,31,FALSE)","v":{"$error":"#N/A"}},null,"Outcome: ",{"$f":"VLOOKUP($O$3,Datasheet!$A$2:$K$334,33,FALSE)","v":{"$error":"#N/A"}},null,"Outcome: ",null,{"$f":"VLOOKUP($O$3,Datasheet!$A$2:$K$334,35,FALSE)","v":{"$error":"#N/A"}}]
[]
["Other Agency Involvement"]
["Primary FT Exclusion",null,{"$f":"VLOOKUP($O$3,Datasheet!$A$2:$K$334,36,FALSE)","v":{"$error":"#N/A"}},null,"Ealing CWSW",null,{"$f":"VLOOKUP($O$3,Datasheet!$A$2:$ZA$334,38,FALSE)","v":{"$error":"#N/A"}}]
["Ealing EHCP",null,{"$f":"VLOOKUP($O$3,Datasheet!$A$2:$K$334,37,FALSE)","v":{"$error":"#N/A"}},null,"Sensory Impairment",null,{"$f":"VLOOKUP($O$3,Datasheet!$A$2:$ZA$334,39,FALSE)","v":{"$error":"#N/A"}}]
[]
[]
[]
["Notes"]
["Please use the space below to record any additional information during your visit to the pupil's primary school. For example,"]
["relationships with peers and adults, friendship groups, particular strengths and weaknesses, out of schools activities such "]
["as arts, sport, supplementary school etc."]

{"sheet":"Datasheet","index":2,"n_rows":247,"n_cols":18,"rows_kept":247,"cut":false,"hidden":false,"merged":[]}
["Surname","Forename","DOB","Primary ","Gender","FSM","Pupil premium","Ethnicity","SEN","SEN ","First","Students Needs ","Strategies ","Transfer Form Notes if not SEN/ EAL","Not to be placed with:","Medical","AA","Safeguarding"]
[]
[]
[]
[]
[]
[]
[]
[]
[]
[]
[]
[]
[]
[]
[]
[]
[]
[]
[]
[]
[]
[]
[]
[]
[]
[]
[]
[]
[]
[]
[]
[]
[]
[]
[]
[]
[]
[]
[]
[]
[]
[]
[]
[]
[]
[]
[]
[]
[]
[]
[]
[]
[]
[]
[]
[]
[]
[]
[]
[]
[]
[]
[]
[]
[]
[]
[]
[]
[]
[]
[]
[]
[]
[]
[]
[]
[]
[]
[]
[]
[]
[]
[]
[]
[]
[]
[]
[]
[]
[]
[]
[]
[]
[]
[]
[]
[]
[]
[]
[]
[]
[]
[]
[]
[]
[]
[]
[]
[]
[]
[]
[]
[]
[]
[]
[]
[]
[]
[]
[]
[]
[]
[]
[]
[]
[]
[]
[]
[]
[]
[]
[]
[]
[]
[]
[]
[]
[]
[]
[]
[]
[]
[]
[]
[]
[]
[]
[]
[]
[]
[]
[]
[]
[]
[]
[]
[]
[]
[]
[]
[]
[]
[]
[]
[]
[]
[]
[]
[]
[]
[]
[]
[]
[]
[]
[]
[]
[]
[]
[]
[]
[]
[]
[]
[]
[]
[]
[]
[]
[]
[]
[]
[]
[]
[]
[]
[]
[]
[]
[]
[]
[]
[]
[]
[]
[]
[]
[]
[]
[]
[]
[]
[]
[]
[]
[]
[]
[]
[]
[]
[]
[]
[]
[]
[]
[]
[]
[]
[]
[]
[]
[]
[]
[]
[]
[]
[]
[]
[]
[]
["Biggest concern colours:"]
["Medical"]
["Safeguarding"]
["Behaviour / social"]
["Academic/language"]
["Attendance"]

{"sheet":"Ethnicity Codes","index":3,"n_rows":102,"n_cols":5,"rows_kept":102,"cut":false,"hidden":true,"merged":[[30,4,45,4],[3,2,8,2],[3,3,8,3],[3,4,29,4],[11,3,28,3],[11,2,28,2],[32,2,35,2],[32,3,35,3],[36,2,45,2],[36,3,45,3],[47,2,50,2],[47,3,50,3],[46,4,59,4],[52,2,59,2],[52,3,59,3],[80,3,99,3],[80,4,99,4],[80,2,99,2],[100,4,101,4],[62,2,69,2],[62,3,69,3],[74,4,79,4],[60,4,73,4],[70,2,73,2],[70,3,73,3],[74,2,79,2],[74,3,79,3]]}
["Ethnicity codes"]
[]
["DfES Extended Codes","Approved Extended Categories","DfES Main Code","Sub Category","Main Category"]
["WBRI","White British","WBRI","White - British","White "]
["WCOR","White Cornish"]
["WENG","White English "]
["WSCO","White Scottish"]
["WWEL","White Welsh"]
["WOWB","Other White British"]
["WIRI","White Irish","WIRI","White - Irish"]
["WIRT","Traveller of Irish Heritage","WIRT","Traveller of Irish Heritage"]
["WOTH","Any Other White Background","WOTH","Any Other White Background"]
["WALB","Albanian "]
["WBOS","Bosnian-Herzegovinian"]
["WCRO","Croatian"]
["WGRE","Greek/ Greek Cypriot"]
["WGRK","Greek"]
["WGRC","Greek Cypriot"]
["WITA","Italian"]
["WKOS","Kosovan"]
["WPOR","Portuguese"]
["WSER","Serbian"]
["WTUR","Turkish/ Turkish Cypriot"]
["WTUK","Turkish"]
["WTUC","Turkish Cypriot"]
["WEUR","White European"]
["WEEU","White Eastern European "]
["WWEU","White Western European "]
["WOTW","White Other "]
["WROM","Gypsy / Roma","WROM","Gypsy / Roma"]
["MWBC","White & Black Caribbean","MWBC","White and Black Caribbean","Mixed / Dual Background"]
["MWBA","White & Black African","MWBA","White and Black African"]
["MWAS","White & Asian","MWAS","White and Asian"]
["MWAP","White & Pakistani"]
["MWAI","White & Indian"]
["MWAO","White & Any Other Asian Backgr'd"]
["MOTH","Any Other Mixed Background","MOTH","Any Other Mixed Background"]
["MAOE","Asian & Any Other Ethnic Group"]
["MABL","Asian & Black"]
["MACH","Asian & Chinese"]
["MBOE","Black & Any Other Ethnic Group"]
["MBCH","Black & Chinese "]
["MCOE","Chinese & Any Other Ethnic Group"]
["MWOE","White & Any Other Ethnic Group"]
["MWCH","White & Chinese"]
["MOTM","Other Mixed Background"]
["AIND","Indian","AIND","Indian","Asian or Asian British"]
["APKN","Pakistani","APKN","Pakistani"]
["AMPK","Mirpuri Pakistani"]
["AKPA","Kashmiri Pakistani"]
["AOPK","Other Pakistani"]
["ABAN","Bangladeshi","ABAN","Bangladeshi"]
["AOTH","Any Other Asian Background","AOTH","Any Other Asian Background"]
["AAFR","African Asian "]
["AKAO","Kashmiri Other"]
["ANEP","Nepali"]
["ASNL","Sri Lankan Sinhalese"]
["ASLT","Sri Lankan Tamil"]
["ASRO","Sri Lankan Other"]
["AOTA","Other Asian"]
["BCRB","Black Caribbean","BCRB","Black Caribbean","Black or Black British"]
["BAFR","Black African","BAFR","Black - African"]
["BANN","Black Angolan","BAFR","Black - African"]
["BCON","Black Congolese"]
["BGHA","Black Ghanaian"]
["BNGN","Black Nigerian"]
["BSLN","Black Sierra Leonean"]
["BSOM","Black Somali"]
["BSUD","Black Sudanese"]
["BAOF","Other Black African "]
["BOTH","Any Other Black Background","BOTH","Any Other Black Background"]
["BEUR","Black European"]
["BNAM","Black North American "]
["BOTB","Other Black"]
["CHNE","Chinese","CHNE","Chinese","Chinese "]
["CHKC","Hong Kong Chinese"]
["CMAL","Malaysian Chinese"]
["CSNG","Singaporean Chinese"]
["CTWN","Taiwanese"]
["COCH","Other Chinese"]
["OOTH","Any Other Ethnic Group","OOTH","Any Other Ethnic Group","Any Other Ethnic Group"]
["OAFG","Afghan"]
["OARA","Arab Other"]
["OEGY","Egyptian"]
["OFIL","Filipino"]
["OIRN","Iranian"]
["OIRQ","Iraqi"]
["OJPN","Japanese"]
["OKOR","Korean"]
["OKRD","Kurdish "]
["OLAM","Latin/ South/ Central American "]
["OLEB","Lebanese"]
["OLIB","Libyan"]
["OMAL","Malay"]
["OMRC","Moroccan"]
["OPOL","Polynesian "]
["OTHA","Thai"]
["OVIE","Vietnamese"]
["OYEM","Yemeni"]
["OOEG","Other Ethnic Group"]
["REFU","Refused ","REFU ","Refused ","Unclassified"]
["NOBT","Information Not Yet Obtained","NOBT","Information Not Yet Obtained"]

{"sheet":"Country of Birth & Nationality","index":4,"n_rows":295,"n_cols":5,"rows_kept":295,"cut":false,"hidden":true,"merged":[[0,0,0,1]]}
["Country of Birth/Nationality Codes"]
[]
["ISO 3166-1\nAlpha-3","Nation Short Name","Nation Long Name","Current?","Notes"]
["AFG","Afghanistan","The Transitional Islamic State of Afghanistan","Yes"]
["ALA","Aland Islands","Aland Islands","Yes","From 2004. Formerly part of (old) Finland."]
["ALB","Albania","Republic of Albania","Yes"]
["DZA","Algeria","Democratic and Popular\nRepublic of Algeria","Yes"]
["ASM","American Samoa","American Samoa","Yes"]
["AND","Andorra","Principality of Andorra","Yes"]
["AGO","Angola","Republic of Angola","Yes"]
["AIA","Anguilla","Anguilla","Yes","From 1985. Formerly part of Saint Kitts-Nevis-\nAnguilla."]
["ATA","Antarctica","Antarctica","Yes"]
["ATG","Antigua and Barbuda","Antigua and Barbuda","Yes"]
["ARG","Argentina","Argentine Republic","Yes"]
["ARM","Armenia","Republic of Armenia","Yes","From 1992. Formerly part\nof Union of Soviet Socialist\nRepublics (USSR)."]
["ABW","Aruba","Aruba","Yes","From 1986. Formerly part\nof (old) Netherlands\nAntiles."]
["AUS","Australia","Commonwealth of Australia","Yes"]
["AUT","Austria","Republic of Austria","Yes"]
["AZE","Azerbaijan","Azerbaijani Republic","Yes","From 1992. Formerly part of Union of Soviet Socialist\nRepublics (USSR)."]
["BHS","Bahamas","Commonwealth of The\nBahamas","Yes"]
["BHR","Bahrain","State of Bahrain","Yes"]
["BGD","Bangladesh","People's Republic of\nBangladesh","Yes"]
["BRB","Barbados","Barbados","Yes"]
["BLR","Belarus","Republic of Belarus","Yes","From 1992. Formerly part of Union of Soviet Socialist\nRepublics (USSR). Formerly Byelorussian\nSSR. New name from\n1992."]
["BEL","Belgium","Kingdom of Belgium","Yes"]
["BLZ","Belize","Belize","Yes"]
["BEN","Benin","Republic of Benin","Yes","Formerly Dahomey. New name from 1977."]
["BMU","Bermuda","Bermuda","Yes"]
["BTN","Bhutan","Kingdom of Bhutan","Yes"]
["BOL","Bolivia","Republic of Bolivia","Yes"]
["BES","Bonaire, Sint Eustatius and Saba","Bonaire, Sint Eustatius and\nSaba","Yes","The code BQ was formerly used for British\nAntarctic Territory (BQ, ATB, --). See also code\nelement BQAQ. BQ has\nbeen reused and reassigned to Bonaire, Sint Eustatius and Saba. The Netherlands Antilles (AN, ANT, 530) was divided into (BQ, BES,\n535), (CW, CUW, 531) and (SX, SXM, 534). See also code element ANHH"]
["BIH","Bosnia and Herzegovina","Bosnia and Herzegovina","Yes","From 1993. Formerly part of Yugoslavia."]
["BWA","Botswana","Republic of Botswana","Yes"]
["BVT","Bouvet Island","Bouvet Island","Yes"]
["BRA","Brazil","Federative Republic of Brazil","Yes"]
["ATB","British Antarctic Territory","British Antarctic Territory","No","From 1979 part of\nAntarctica."]
["IOT","British Indian Ocean\nTerritory","British Indian Ocean Territory","Yes"]
["BRN","Brunei","Negara Brunei Darussalam","Yes"]
["BGR","Bulgaria","Republic of Bulgaria","Yes"]
["BFA","Burkina Faso","Burkina Faso","Yes","Formerly Upper Volta. New name from 1984."]
["BUR","Burma","Burma","No","From 1989 named\nMynmar."]
["BDI","Burundi","Republic of Burundi","Yes"]
["BYS","Byelorussian SSR","Byelorussian Soviet Socialist\nRepublic","No","From 1992 named Belarus."]
["KHM","Cambodia","Kingdom of Cambodia","Yes","Formerly Kampuchea. New\nname from 1990."]
["CMR","Cameroon","Republic of Cameroon","Yes"]
["CAN","Canada","Canada","Yes"]
["CTE","Canton and Enderbury\nIslands","Canton and Enderbury Islands","No","From 1984 merged with\nKiribati."]
["CPV","Cape Verde","Republic of Cape Verde","Yes"]
["CYM","Cayman Islands","Cayman Islands","Yes"]
["CAF","Central African Republic","Central African Republic","Yes"]
["TCD","Chad","Republic of Chad","Yes"]
["CHL","Chile","Republic of Chile","Yes"]
["CHN","China","People's Republic of China","Yes"]
["CXR","Christmas Island","Christmas Island","Yes"]
["CCK","Cocos (Keeling) Islands","Cocos (Keeling) Islands","Yes"]
["COL","Colombia","Republic of Colombia","Yes"]
["COM","Comoros","Union of the Comoros","Yes","Formerly named Federal\nIslamic Republic of the\nComoros. New name from\n2003."]
["COG","Congo","Republic of the Congo","Yes"]
["COD","Congo, Democratic\nRepublic","Democratic Republic of the\nCongo","Yes","Formerly Zaire. New name\nfrom 1997."]
["COK","Cook Islands","Cook Islands","Yes"]
["CRI","Costa Rica","Republic of Costa Rica","Yes"]
["HRV","Croatia","Republic of Croatia","Yes","From 1992. Formerly part of Yugoslavia."]
["CUB","Cuba","Republic of Cuba","Yes"]
["CUW","Curaçao","Curaçao","Yes","From 2010. Formerly part of (new) Netherlands\nAntilles."]
["CYP","Cyprus","Republic of Cyprus","Yes"]
["CZE","Czech Republic","Czech Republic","Yes","From 1993. Formerly part\nof Czechoslovakia."]
["CSK","Czechoslovakia","Czechoslovak Socialist\nRepublic","No","1993: Became Czech\nRepublic and Slovakia."]
["DHY","Dahomey","Dahomey","No","From 1977 named Benin."]
["YMD","Democratic Yemen","People's Democratic Republic of Yemen","No","From 1990 merged with\nYemen Arab Republic to form Republic of Yemen."]
["DNK","Denmark","Kingdom of Denmark","Yes"]
["DJI","Djibouti","Republic of Djibouti","Yes","Formerly French Territory of Afars and Issas. New\nname from 1977."]
["DMA","Dominica","Commonwealth of Dominica","Yes"]
["DOM","Dominican Republic","Dominican Republic","Yes"]
["ATN","Dronning Maud Land","Dronning Maud Land","No","From 1983 merged with\nAntarctica."]
["TMP","East Timor","East Timor","No","From 2002 named Timor- Leste."]
["ECU","Ecuador","Republic of Ecuador","Yes"]
["EGY","Egypt","Arab Republic of Egypt","Yes"]
["SLV","El Salvador","Republic of El Salvador","Yes"]
["GNQ","Equatorial Guinea","Republic of Equatorial Guinea","Yes"]
["ERI","Eritrea","State of Eritrea","Yes","From 1993. Formerly part of (old) Ethiopia."]
["EST","Estonia","Republic of Estonia","Yes","From 1992. Formerly part of Union of Soviet Socialist\nRepublics (USSR)."]
["ETH","Ethiopia","Federal Democratic Republic of Ethiopia","Yes","From 1993. Formerly part of (old) Ethiopia."]
["ETH","Ethiopia","Federal Democratic Republic\nof Ethiopia","No","1993: Became Eritrea and\n(new) Ethiopia."]
["FLK","Falkland Islands","Falkland Islands","Yes"]
["FRO","Faroe Islands","Faroe Islands","Yes"]
["DEU","Federal Republic of\nGermany","Federal Republic of Germany","No","From 1990 merged with\nGerman Democratic Republic to form (new) Federal Republic of Germany."]
["FJI","Fiji","Republic of the Fiji Islands","Yes"]
["FIN","Finland","Republic of Finland","Yes","From 2004. Formerly part of (old) Finland."]
["FIN","Finland","Republic of Finland","No","2004: Became Aland\nIslands and (new) Finland."]
["FRA","France","French Republic","Yes"]
["GUF","French Guiana","French Guiana","Yes"]
["PYF","French Polynesia","French Polynesia","Yes"]
["ATF","French Southern\nTerritories","French Southern Territories","Yes","1979: Changed name from\nFrench Southern and\nAntarctic Territories."]
["AFI","French Territory of Afars and Issas","French Territory of Afars and\nIssas","No","From 1977 named Djibouti."]
["GAB","Gabon","Gabonese Republic","Yes"]
["GMB","Gambia, The","Republic of The Gambia","Yes"]
["GEO","Georgia","Georgia","Yes","From 1992. Formerly part of Union of Soviet Socialist Republics (USSR)."]
["DDR","German Democratic\nRepublic","German Democratic Republic","No","From 1990 merged with\nFederal Republic of\nGermany to form (new) Federal Republic of Germany."]
["DEU","Germany","Federal Republic of Germany","Yes","1990: Merger of German Democratic Republic and (old) Federal Republic of\nGermany."]
["GHA","Ghana","Republic of Ghana","Yes"]
["GIB","Gibraltar","Gibraltar","Yes"]
["GEL","Gilbert and Ellice Islands","Gilbert and Ellice Islands","No","1977: Became Gilbert\nIslands and Tuvalu."]
["GEL","Gilbert Islands","Gilbert Islands","No","From 1979 named Kiribati. Formerly part of Gilbert\nand Ellice Islands\n(changed 1977)."]
["GRC","Greece","Hellenic Republic","Yes"]
["GRL","Greenland","Greenland","Yes"]
["GRD","Grenada","Grenada","Yes"]
["GLP","Guadeloupe","Guadeloupe","Yes"]
["GUM","Guam","Guam","Yes"]
["GTM","Guatemala","Republic of Guatemala","Yes"]
["GGY","Guernsey","Guernsey","Yes","From 2006. Previously\nincluded in United\nKingdom."]
["GIN","Guinea","Republic of Guinea","Yes"]
["GNB","Guinea-Bissau","Republic of Guinea-Bissau","Yes"]
["GUY","Guyana","Co-operative Republic of\nGuyana","Yes"]
["HTI","Haiti","Republic of Haiti","Yes"]
["HMD","Heard Island and\nMcDonald Islands","Heard Island and McDonald\nIslands","Yes"]
["VAT","Holy See","Vatican City State","Yes","Formerly named Vatican\nCity State. New name from\n1996."]
["HND","Honduras","Republic of Honduras","Yes"]
["HKG","Hong Kong","Hong Kong","Yes"]
["HUN","Hungary","Republic of Hungary","Yes"]
["ISL","Iceland","Republic of Iceland","Yes"]
["IND","India","Republic of India","Yes"]
["IDN","Indonesia","Republic of Indonesia","Yes"]
["IRN","Iran","Islamic Republic of Iran","Yes"]
["IRQ","Iraq","Republic of Iraq","Yes"]
["IRL","Ireland","Ireland","Yes"]
["IMN","Isle of Man","Isle of Man","Yes","From 2006. Previously\nincluded in United\nKingdom."]
["ISR","Israel","State of Israel","Yes"]
["ITA","Italy","Italian Republic","Yes"]
["CIV","Ivory Coast","Republic of Côte d'Ivoire","Yes"]
["JAM","Jamaica","Jamaica","Yes"]
["JPN","Japan","Japan","Yes"]
["JEY","Jersey","Jersey","Yes","From 2006. Previously included in United\nKingdom."]
["JTN","Johnston Atoll",null,"No","From 1986 merged with\nMidway Islands, United States Miscellaneous Pacific Islands and Wake Island to form United States Minor Outlying Islands."]
["JOR","Jordan","Hashemite Kingdom of Jordan","Yes"]
["KHM","Kampuchea","Kampuchea","No","From 1990 named\nCambodia."]
["KAZ","Kazakhstan","Republic of Kazakhstan","Yes","From 1992. Formerly part of Union of Soviet Socialist\nRepublics (USSR)."]
["KEN","Kenya","Republic of Kenya","Yes"]
["KIR","Kiribati","Republic of Kiribati","Yes","Formerly Gilbert Islands. New name from 1979."]
["PRK","Korea, North","Democratic People's Republic of Korea","Yes"]
["KOR","Korea, South","Republic of Korea","Yes"]
["QOK","Kosovo","Kosovo","Yes","2008: A new category for\nKosovo has been added to the classification in\nacknowledgement\nof the UK’s recognition of Kosovo as an independent nation."]
["KWT","Kuwait","State of Kuwait","Yes"]
["KGZ","Kyrgyzstan","Kyrgyz Republic","Yes","From 1992. Formerly part\nof Union of Soviet Socialist\nRepublics (USSR)."]
["LAO","Laos","Lao People's Democratic\nRepublic","Yes"]
["LVA","Latvia","Republic of Latvia","Yes","From 1992. Formerly part\nof Union of Soviet Socialist\nRepublics (USSR)."]
["LBN","Lebanon","Lebanese Republic","Yes"]
["LSO","Lesotho","Kingdom of Lesotho","Yes"]
["LBR","Liberia","Republic of Liberia","Yes"]
["LBY","Libya","Socialist People's Libyan Arab\nJamahiriya","Yes"]
["LIE","Liechtenstein","Principality of Liechtenstein","Yes"]
["LTU","Lithuania","Republic of Lithuania","Yes","From 1992. Formerly part\nof Union of Soviet Socialist\nRepublics (USSR)."]
["LUX","Luxembourg","Grand Duchy of Luxembourg","Yes"]
["MAC","Macao","Macao","Yes"]
["MKD","Macedonia","The Former Yugoslav\nRepublic of Macedonia","Yes","From 1993. Formerly part\nof Yugoslavia."]
["MDG","Madagascar","Republic of Madagascar","Yes"]
["MWI","Malawi","Republic of Malawi","Yes"]
["MYS","Malaysia","Malaysia","Yes"]
["MDV","Maldives","Republic of Maldives","Yes"]
["MLI","Mali","Republic of Mali","Yes"]
["MLT","Malta","Malta","Yes"]
["MHL","Marshall Islands","Republic of the Marshall\nIslands","Yes","From 1986. Formerly part of Trust Territory of the\nPacific Islands."]
["MTQ","Martinique","Martinique","Yes"]
["MRT","Mauritania","Islamic Republic of Mauritania","Yes"]
["MUS","Mauritius","Republic of Mauritius","Yes"]
["MYT","Mayotte","Mayotte","Yes"]
["MEX","Mexico","United Mexican States","Yes"]
["FSM","Micronesia","Federated States of\nMicronesia","Yes","From 1986. Formerly part of Trust Territory of the\nPacific Islands."]
["MID","Midway Islands",null,"No","From 1986 merged with\nJohnston Atoll, United\nStates Miscellaneous Pacific Islands and Wake Island to form United States Minor Outlying Islands."]
["MDA","Moldova","Republic of Moldova","Yes","From 1992. Formerly part of Union of Soviet Socialist\nRepublics (USSR)."]
["MCO","Monaco","Principality of Monaco","Yes"]
["MNG","Mongolia","Mongolia","Yes"]
["MNE","Montenegro","Republic of Montenegro","Yes","From 2006. Formerly part\nof Serbia and Montenegro."]
["MSR","Montserrat","Montserrat","Yes"]
["MAR","Morocco","Kingdom of Morocco","Yes"]
["MOZ","Mozambique","Republic of Mozambique","Yes"]
["MMR","Myanmar","Union of Myanmar","Yes","Formerly Burma. New name from 1989."]
["NAM","Namibia","Republic of Namibia","Yes"]
["NRU","Nauru","Republic of Nauru","Yes"]
["NPL","Nepal","Kingdom of Nepal","Yes"]
["NLD","Netherlands","Kingdom of the Netherlands","Yes"]
["ANT","Netherlands Antilles","Netherlands Antilles","No","2010: Following\nreferendums held on the islands, a change in constitutional status In October 2010 dissolved the Netherlands Antilles. It was divided into: Bonaire, Saint Eustatius and Saba, Curaçao and Sint Maarten (Dutch part)."]
["NCL","New Caledonia","New Caledonia","Yes"]
["NHB","New Hebrides","New Hebrides","No","From 1980 named\nVanuatu."]
["NZL","New Zealand","New Zealand","Yes"]
["NIC","Nicaragua","Republic of Nicaragua","Yes"]
["NER","Niger","Republic of Niger","Yes"]
["NGA","Nigeria","Federal Republic of Nigeria","Yes"]
["NIU","Niue","Niue","Yes"]
["NFK","Norfolk Island","Norfolk Island","Yes"]
["MNP","Northern Mariana Islands","Northern Mariana Islands","Yes","From 1986. Formerly part of Trust Territory of the\nPacific Islands."]
["NOR","Norway","Kingdom of Norway","Yes"]
["OMN","Oman","Sultanate of Oman","Yes"]
["PAK","Pakistan","Islamic Republic of Pakistan","Yes"]
["PLW","Palau","Republic of Palau","Yes","From 1986. Formerly part of Trust Territory of the\nPacific Islands."]
["PSE","Palestine","Palestinian Territory,\nOccupied","Yes"]
["PAN","Panama","Republic of Panama","Yes"]
["PCZ","Panama Canal Zone","Panama Canal Zone","No","From 1980 merged with\nPanama."]
["PNG","Papua New Guinea","Independent State of Papua\nNew Guinea","Yes"]
["PRY","Paraguay","Republic of Paraguay","Yes"]
["PER","Peru","Republic of Peru","Yes"]
["PHL","Philippines","Republic of the Philippines","Yes"]
["PCN","Pitcairn","Pitcairn","Yes"]
["POL","Poland","Republic of Poland","Yes"]
["PRT","Portugal","Portuguese Republic","Yes"]
["PRI","Puerto Rico","Puerto Rico","Yes"]
["QAT","Qatar","State of Qatar","Yes"]
["REU","Reunion","Reunion","Yes"]
["ROU","Romania","Romania","Yes"]
["RUS","Russia","Russian Federation","Yes","From 1992. Formerly part of Union of Soviet Socialist\nRepublics (USSR)."]
["RWA","Rwanda","Rwandese Republic","Yes"]
["BLM","Saint Barthélemy","Saint Barthélemy",null,"Assignment of code\nelements for Saint\nBarthélemy and\nSaint Martin and update of France and other French Territories; following detachment from Guadeloupe on\n22/02/2007."]
["SHN","St Helena, Ascension and Tristan da Cunha","Saint Helena","Yes"]
["KNA","Saint Kitts and Nevis","Federation of Saint Kitts and\nNevis","Yes","From 1985. Formerly part of Saint Kitts-Nevis-\nAnguilla."]
["KNA","Saint Kitts-Nevis-Anguilla","Saint Kitts-Nevis-Anguilla","No","1985: Became Saint Kitts and Nevis and Anguilla."]
["LCA","Saint Lucia","Saint Lucia","Yes"]
["MAF","Saint Martin (French\nPart)","Saint Martin (French Part)","Yes","Assignment of code\nelements for Saint\nBarthélemy and\nSaint Martin and update of France and other French Territories;\nfollowing detachment\nfrom Guadeloupe on\n22/02/2007."]
["SPM","Saint Pierre and\nMiquelon","Saint Pierre and Miquelon","Yes"]
["VCT","Saint Vincent and the\nGrenadines","Saint Vincent and the\nGrenadines","Yes"]
["WSM","Samoa","Independent State of Samoa","Yes"]
["SMR","San Marino","Republic of San Marino","Yes"]
["STP","Sao Tome and Principe","Democratic Republic of Sao\nTome and Principe","Yes"]
["SAU","Saudi Arabia","Kingdom of Saudi Arabia","Yes"]
["SEN","Senegal","Republic of Senegal","Yes"]
["SRB","Serbia","Republic of Serbia","Yes","From 2006. Formerly part\nof Serbia and Montenegro."]
["SCG","Serbia and Montenegro","Serbia and Montenegro","No","2006: Became Serbia and\nMontenegro"]
["SYC","Seychelles","Republic of Seychelles","Yes"]
["SLE","Sierra Leone","Republic of Sierra Leone","Yes"]
["SKM","Sikkim","Sikkim","No","From 1975 merged with\nIndia."]
["SGP","Singapore","Republic of Singapore","Yes"]
["SXM","Sint Maarten (Dutch Part)","Sint Maarten (Dutch Part)","Yes","From 2010. Formerly part of (new) Netherlands\nAntilles."]
["SVN","Slovenia","Republic of Slovenia","Yes","From 1993. Formerly part\nof Yugoslavia."]
["SVK","Slovakia","Slovak Republic","Yes","From 1993. Formerly part of Czechoslovakia."]
["SLB","Solomon Islands","Solomon Islands","Yes"]
["SOM","Somalia","Somalia","Yes"]
["ZAF","South Africa","Republic of South Africa","Yes"]
["SGS","South Georgia","South Georgia and the South\nSandwich Islands","Yes","From 1993. Formerly part of the Falkland Islands."]
["SSD","South Sudan","South Sudan","Yes","Split of Sudan into Sudan\n(north part) and South\nSudan (south part)\nfollowing Southern Sudan's creation as an independent\nstate in July 2011"]
["VDR","South Vietnam","Democratic Republic of\nVietnam","No","From 1977 merged with\nNorth Vietnam to form\nVietnam."]
["RHO","Southern Rhodesia","Southern Rhodesia","No","From 1980 named\nZimbabwe."]
["ESP","Spain","Kingdom of Spain","Yes"]
["ESH","Spanish Sahara","Spanish Sahara","No","From 1985 named Western\nSahara."]
["LKA","Sri Lanka","Democratic Socialist Republic\nof Sri Lanka","Yes"]
["SDN","Sudan","Republic of the Sudan","Yes"]
["SUR","Suriname","Republic of Suriname","Yes"]
["SJM","Svalbard and Jan Mayen","Svalbard and Jan Mayen","Yes"]
["SWZ","Swaziland","Kingdom of Swaziland","Yes"]
["SWE","Sweden","Kingdom of Sweden","Yes"]
["CHE","Switzerland","Swiss Confederation","Yes"]
["SYR","Syria","Syrian Arab Republic","Yes"]
["TWN","Taiwan","Taiwan","Yes"]
["TJK","Tajikistan","Republic of Tajikistan","Yes","From 1992. Formerly part\nof Union of Soviet Socialist\nRepublics (USSR)."]
["TZA","Tanzania","United Republic of Tanzania","Yes"]
["THA","Thailand","Kingdom of Thailand","Yes"]
["TLS","Timor-Leste","Timor-Leste","Yes","Formerly East Timor. New\nname from 2002."]
["TGO","Togo","Togolese Republic","Yes"]
["TKL","Tokelau","Tokelau","Yes"]
["TON","Tonga","Kingdom of Tonga","Yes"]
["TTO","Trinidad and Tobago","Republic of Trinidad and\nTobago","Yes"]
["PCI","Trust Territory of the\nPacific Islands","Trust Territory of the Pacific\nIslands","No","1986: Became Marshall\nIslands, Micronesia, Northern Mariana Islands\nand Palau."]
["TUN","Tunisia","Republic of Tunisia","Yes"]
["TUR","Turkey","Republic of Turkey","Yes"]
["TKM","Turkmenistan","Turkmenistan","Yes","From 1992. Formerly part of Union of Soviet Socialist\nRepublics (USSR)."]
["TCA","Turks and Caicos Islands","Turks and Caicos Islands","Yes"]
["TUV","Tuvalu","Tuvalu","Yes","Formerly Ellice Islands, part of Gilbert and Ellice\nIslands. New name from\n1977."]
["UGA","Uganda","Republic of Uganda","Yes"]
["UKR","Ukraine","Ukraine","Yes","From 1992. Formerly part of Union of Soviet Socialist\nRepublics (USSR). Formerly Ukrainian SSR.\nNew name from 1992."]
["UKR","Ukrainian SSR","Ukrainian Soviet Socialist\nRepublic","No","From 1992 named Ukraine."]
["SUN","Union of Soviet Socialist\nRepublics","Union of Soviet Socialist\nRepublics","No","1992: Became Armenia, Azerbaijan, Belarus*,\nEstonia, Georgia, Kazakstan, Kyrgyzstan,\nLatvia, Lithuania, Moldova, Russian Federation,\nTajikistan, Turkmenistan, Ukraine* and Uzbekistan.\n*  Belarus and Ukraine had separate ISO codes before\nthe USSR break-up."]
["ARE","United Arab Emirates","United Arab Emirates","Yes"]
["GBR","United Kingdom","United Kingdom of Great\nBritain and Northern Ireland","Yes","From 2006 separate entries for Guernsey, Isle\nof Man and Jersey"]
["USA","United States","United States of America","Yes"]
["UMI","United States Minor\nOutlying Islands","United States Minor Outlying\nIslands","Yes","1986: Merger of Johnston\nAtoll, Midway Islands, United States Miscellaneous Pacific Islands and Wake Island."]
["PUS","United States\nMiscellaneous Pacific\nIslands",null,"No","From 1986 merged with\nJohnston Atoll, Midway\nIslands and Wake Island to form United States Minor Outlying Islands."]
["HVO","Upper Volta","Upper Volta","No","From 1984 named Burkina\nFaso."]
["URY","Uruguay","Oriental Republic of Uruguay","Yes"]
["UZB","Uzbekistan","Republic of Uzbekistan","Yes","From 1992. Formerly part of Union of Soviet Socialist\nRepublics (USSR)."]
["VUT","Vanuatu","Republic of Vanuatu","Yes","Formerly New Hebrides.\nNew name from 1980."]
["VAT","Vatican City State","Holy See","No","From 1996 named Holy\nSee."]
["VEN","Venezuela","Bolivarian Republic of\nVenezuela","Yes"]
["VNM","Vietnam","Socialist Republic of Vietnam","Yes","1977: Merger of South\nVietnam (separate coding) and North Vietnam (same coding)."]
["VGB","Virgin Islands,  British","Virgin Islands,  British","Yes"]
["VIR","Virgin Islands,  U.S.","Virgin Islands,  U.S.","Yes"]
["WAK","Wake Island",null,"No","From 1986 merged with\nJohnston Atoll, Midway Islands and United States Miscellaneous Pacific Islands to form United States Minor Outlying Islands."]
["WLF","Wallis and Futuna","Wallis and Futuna","Yes"]
["ESH","Western Sahara","Western Sahara","Yes","Formerly Spanish Sahara. New name from 1985."]
["YEM","Yemen","Republic of Yemen","Yes","1990: Merger of\nDemocratic Yemen and\nYemen Arab Republic."]
["YEM","Yemen","Yemen Arab Republic","No","From 1990 merged with\nDemocratic Yemen to form\nRepublic of Yemen."]
["YUG","Yugoslavia","Socialist Federal Republic of\nYugoslavia","No","Became Bosnia and\nHerzegovina (1993), Croatia (1992), Macedonia (1993), Serbia and Montenegro (2003) and Slovenia (1993). Numeric code 890 prior to 1993."]
["ZAR","Zaire","Republic of Zaire","No","From 1997 named\nDemocratic Republic of the\nCongo."]
["ZMB","Zambia","Republic of Zambia","Yes"]
["ZWE","Zimbabwe","Republic of Zimbabwe","Yes","Formerly Southern\nRhodesia. New name from\n1980."]
["REF","Refused","These codes have been added to allow schools to record answers other\nthan a country code/name."]
["NYO","Not Yet Obtained"]
["STA","Stateless"]
["NKO","Not Known"]

{"sheet":"Language Codes","index":5,"n_rows":325,"n_cols":3,"rows_kept":325,"cut":false,"hidden":true,"merged":[]}
["First Language codes"]
[]
["Main Code","Sub Code","Descriptor"]
["ACL",null,"Acholi"]
["ADA",null,"Adangme"]
["AFA",null,"Afar-Saho"]
["AFK",null,"Afrikaans"]
["AKA",null,"Akan/Twi-Fante"]
["AKAF","AKA","Akan (Fante)"]
["AKAT","AKA","Akan (Twi/Asante)"]
["ALB",null,"Albanian/Shqip"]
["ALU",null,"Alur"]
["AMR",null,"Amharic"]
["ARA",null,"Arabic"]
["ARAA","ARA","Arabic (Any Other)"]
["ARAG","ARA","Arabic (Algeria)"]
["ARAI","ARA","Arabic (Iraq)"]
["ARAM","ARA","Arabic (Morocco)"]
["ARAS","ARA","Arabic (Sudan)"]
["ARAY","ARA","Arabic (Yemen)"]
["ARM",null,"Armenian"]
["ASM",null,"Assamese"]
["ASR",null,"Assyrian/Aramaic"]
["AYB",null,"Anyi-Baule"]
["AYM",null,"Aymara"]
["AZE",null,"Azeri"]
["BAI",null,"Bamileke (Any)"]
["BAL",null,"Balochi"]
["BEJ",null,"Beja/Bedawi"]
["BEL",null,"Belarusian"]
["BEM",null,"Bemba"]
["BHO",null,"Bhojpuri"]
["BIK",null,"Bikol"]
["BLT",null,"Balti Tibetan"]
["BMA",null,"Burmese/Myanma"]
["BNG",null,"Bengali"]
["BNGA","BNG","Bengali (Any Other)"]
["BNGC","BNG","Bengali (Chittagong/Noakhali)"]
["BNGS","BNG","Bengali (Sylheti)"]
["BSL",null,"British Sign Language"]
["BSQ",null,"Basque/Euskara"]
["BUL",null,"Bulgarian"]
["CAM",null,"Cambodian/Khmer"]
["CAT",null,"Catalan"]
["CCE",null,"Caribbean Creole English"]
["CCF",null,"Caribbean Creole French"]
["CGA",null,"Chaga"]
["CGR",null,"Chattisgarhi/Khatahi"]
["CHE",null,"Chechen"]
["CHI",null,"Chinese"]
["CHIA","CHI","Chinese (Any Other)"]
["CHIC","CHI","Chinese (Cantonese)"]
["CHIH","CHI","Chinese (Hokkien/Fujianese)"]
["CHIK","CHI","Chinese (Hakka)"]
["CHIM","CHI","Chinese (Mandarin/Putonghua)"]
["CKW",null,"Chokwe"]
["CRN",null,"Cornish"]
["CTR",null,"Chitrali/Khowar"]
["CWA",null,"Chichewa/Nyanja"]
["CYM",null,"Welsh/Cymraeg"]
["CZE",null,"Czech"]
["DAN",null,"Danish"]
["DGA",null,"Dagaare"]
["DGB",null,"Dagbane"]
["DIN",null,"Dinka/Jieng"]
["DUT",null,"Dutch/Flemish"]
["DZO",null,"Dzongkha/Bhutanese"]
["EBI",null,"Ebira"]
["EDO",null,"Edo/Bini"]
["EFI",null,"Efik-Ibibio"]
["ENB",null,"Believed to be English"]
["ENG",null,"English"]
["ESA",null,"Esan/Ishan"]
["EST",null,"Estonian"]
["EWE",null,"Ewe"]
["EWO",null,"Ewondo"]
["FAN",null,"Fang"]
["FIJ",null,"Fijian"]
["FIN",null,"Finnish"]
["FON",null,"Fon"]
["FRN",null,"French"]
["FUL",null,"Fula/Fulfulde-Pulaar"]
["GAA",null,"Ga"]
["GAE",null,"Gaelic/Irish"]
["GAL",null,"Gaelic (Scotland)"]
["GEO",null,"Georgian"]
["GER",null,"German"]
["GGO",null,"Gogo/Chigogo"]
["GKY",null,"Kikuyu/Gikuyu"]
["GLG",null,"Galician/Galego"]
["GRE",null,"Greek"]
["GREA","GRE","Greek (Any Other)"]
["GREC","GRE","Greek (Cyprus)"]
["GRN",null,"Guarani"]
["GUJ",null,"Gujarati"]
["GUN",null,"Gurenne/Frafra"]
["GUR",null,"Gurma"]
["HAU",null,"Hausa"]
["HDK",null,"Hindko"]
["HEB",null,"Hebrew"]
["HER",null,"Herero"]
["HGR",null,"Hungarian"]
["HIN",null,"Hindi"]
["IBA",null,"Iban"]
["IDM",null,"Idoma"]
["IGA",null,"Igala"]
["IGB",null,"Igbo"]
["IJO",null,"Ijo (Any)"]
["ILO",null,"Ilokano"]
["ISK",null,"Itsekiri"]
["ISL",null,"Icelandic"]
["ITA",null,"Italian"]
["ITAA","ITA","Italian (Any Other)"]
["ITAN","ITA","Italian (Napoletan)"]
["ITAS","ITA","Italian (Sicilian)"]
["JAV",null,"Javanese"]
["JIN",null,"Jinghpaw/Kachin"]
["JPN",null,"Japanese"]
["KAM",null,"Kikamba"]
["KAN",null,"Kannada"]
["KAR",null,"Karen (Any)"]
["KAS",null,"Kashmiri"]
["KAU",null,"Kanuri"]
["KAZ",null,"Kazakh"]
["KCH",null,"Katchi"]
["KGZ",null,"Kirghiz/Kyrgyz"]
["KHA",null,"Khasi"]
["KHY",null,"Kihaya/Luziba"]
["KIN",null,"Kinyarwanda"]
["KIR",null,"Kirundi"]
["KIS",null,"Kisi (West Africa)"]
["KLN",null,"Kalenjin"]
["KMB",null,"Kimbundu"]
["KME",null,"Kimeru"]
["KNK",null,"Konkani"]
["KNY",null,"Kinyakyusa-Ngonde"]
["KON",null,"Kikongo"]
["KOR",null,"Korean"]
["KPE",null,"Kpelle"]
["KRI",null,"Krio"]
["KRU",null,"Kru (Any)"]
["KSI",null,"Kisii/Ekegusii (Kenya)"]
["KSU",null,"Kisukuma"]
["KUR",null,"Kurdish"]
["KURA","KUR","Kurdish (Any Other)"]
["KURM","KUR","Kurdish (Kurmanji)"]
["KURS","KUR","Kurdish (Sorani)"]
["LAO",null,"Lao"]
["LBA",null,"Luba"]
["LBAC","LBA","Luba (Chiluba/Tshiluba)"]
["LBAK","LBA","Luba (Kiluba)"]
["LGA",null,"Luganda"]
["LGB",null,"Lugbara"]
["LGS",null,"Lugisu/Lumasaba"]
["LIN",null,"Lingala"]
["LIT",null,"Lithuanian"]
["LNG",null,"Lango (Uganda)"]
["LOZ",null,"Lozi/Silozi"]
["LSO",null,"Lusoga"]
["LTV",null,"Latvian"]
["LTZ",null,"Luxemburgish"]
["LUE",null,"Luvale/Luena"]
["LUN",null,"Lunda"]
["LUO",null,"Luo (Kenya/Tanzania)"]
["LUY",null,"Luhya (Any)"]
["MAG",null,"Magahi"]
["MAI",null,"Maithili"]
["MAK",null,"Makua"]
["MAN",null,"Manding/Malinke"]
["MANA","MAN","Manding/Malinke (Any Other)"]
["MANB","MAN","Bambara"]
["MANJ","MAN","Dyula/Jula"]
["MAO",null,"Maori"]
["MAR",null,"Marathi"]
["MAS",null,"Maasai"]
["MDV",null,"Maldivian/Dhivehi"]
["MEN",null,"Mende"]
["MKD",null,"Macedonian"]
["MLG",null,"Malagasy"]
["MLM",null,"Malayalam"]
["MLT",null,"Maltese"]
["MLY",null,"Malay/Indonesian"]
["MLYA","MLY","Malay (Any Other)"]
["MLYI","MLY","Indonesian/Bahasa Indonesia"]
["MNA",null,"Magindanao-Maranao"]
["MNG",null,"Mongolian (Khalkha)"]
["MNX",null,"Manx Gaelic"]
["MOR",null,"Moore/Mossi"]
["MSC",null,"Mauritian/Seychelles Creole"]
["MUN",null,"Munda (Any)"]
["MYA",null,"Maya (Any)"]
["NAH",null,"Nahuatl/Mexicano"]
["NAM",null,"Nama/Damara"]
["NBN",null,"Nubian (Any)"]
["NDB",null,"Ndebele"]
["NDBS","NDB","Ndebele (South Africa)"]
["NDBZ","NDB","Ndebele (Zimbabwe)"]
["NEP",null,"Nepali"]
["NOR",null,"Norwegian"]
["NOT",null,"Information not obtained*"]
["NUE",null,"Nuer/Naadh"]
["NUP",null,"Nupe"]
["NWA",null,"Newari"]
["NZM",null,"Nzema"]
["OAM",null,"Ambo/Oshiwambo"]
["OAMK","OAM","Ambo (Kwanyama)"]
["OAMN","OAM","Ambo (Ndonga)"]
["OGN",null,"Ogoni (Any)"]
["ORI",null,"Oriya"]
["ORM",null,"Oromo"]
["OTB",null,"Believed to be Other than Eng*"]
["OTH",null,"Other than English*"]
["OTL",null,"Other Language"]
["PAG",null,"Pangasinan"]
["PAM",null,"Pampangan"]
["PAT",null,"Pashto/Pakhto"]
["PHA",null,"Pahari/Himachali (India)"]
["PHR",null,"Pahari (Pakistan)"]
["PNJ",null,"Panjabi"]
["PNJA","PNJ","Panjabi (Any Other)"]
["PNJG","PNJ","Panjabi (Gurmukhi)"]
["PNJM","PNJ","Panjabi (Mirpuri)"]
["PNJP","PNJ","Panjabi (Pothwari)"]
["POL",null,"Polish"]
["POR",null,"Portuguese"]
["PORA","POR","Portuguese (Any Other)"]
["PORB","POR","Portuguese (Brazil)"]
["PRS",null,"Persian/Farsi"]
["PRSA","PRS","Farsi/Persian (Any Other)"]
["PRSD","PRS","Dari Persian"]
["PRST","PRS","Tajiki Persian"]
["QUE",null,"Quechua"]
["RAJ",null,"Rajasthani/Marwari"]
["REF",null,"Refused*"]
["RME",null,"Romany/English Romanes"]
["RMI",null,"Romani (International)"]
["RMN",null,"Romanian"]
["RMNM","RMN","Romanian (Moldova)"]
["RMNR","RMN","Romanian (Romania)"]
["RMS",null,"Romansch"]
["RNY",null,"Runyakitara"]
["RNYN","RNY","Runyankore-Ruchiga"]
["RNYO","RNY","Runyoro-Rutooro"]
["RUS",null,"Russian"]
["SAM",null,"Samoan"]
["SCB",null,"Serbian/Croatian/Bosnian"]
["SCBB","SCB","Bosnian"]
["SCBC","SCB","Croatian"]
["SCBS","SCB","Serbian"]
["SCO",null,"Scots"]
["SHL",null,"Shilluk/Cholo"]
["SHO",null,"Shona"]
["SID",null,"Sidamo"]
["SIO",null,"Sign Language (Other)"]
["SLO",null,"Slovak"]
["SLV",null,"Slovenian"]
["SND",null,"Sindhi"]
["SNG",null,"Sango"]
["SNH",null,"Sinhala"]
["SOM",null,"Somali"]
["SPA",null,"Spanish"]
["SRD",null,"Sardinian"]
["SRK",null,"Siraiki"]
["SSO",null,"Sotho/Sesotho"]
["SSOO","SSO","Sotho/Sesotho (Southern)"]
["SSOT","SSO","Sotho/Sesotho (Northern)"]
["SSW",null,"Swazi/Siswati"]
["STS",null,"Tswana/Setswana"]
["SUN",null,"Sundanese"]
["SWA",null,"Swahili/Kiswahili"]
["SWAA","SWA","Swahili (Any Other)"]
["SWAC","SWA","Comorian Swahili"]
["SWAK","SWA","Swahili (Kingwana)"]
["SWAM","SWA","Swahili (Brava/Mwiini)"]
["SWAT","SWA","Swahili (Bajuni/Tikuu)"]
["SWE",null,"Swedish"]
["TAM",null,"Tamil"]
["TEL",null,"Telugu"]
["TEM",null,"Temne"]
["TES",null,"Teso/Ateso"]
["TGE",null,"Tigre"]
["TGL",null,"Tagalog/Filipino"]
["TGL","TGLF","Filipino"]
["TGL","TGLG","Tagalog"]
["TGR",null,"Tigrinya"]
["THA",null,"Thai"]
["TIB",null,"Tibetan"]
["TIV",null,"Tiv"]
["TMZ",null,"Berber/Tamazight"]
["TMZA","TMZ","Berber/Tamazight (Any Other)"]
["TMZK","TMZ","Berber/Tamazight (Kabyle)"]
["TMZT","TMZ","Berber (Tamashek)"]
["TNG",null,"Tonga/Chitonga (Zambia)"]
["TON",null,"Tongan (Oceania)"]
["TPI",null,"Tok Pisin"]
["TRI",null,"Traveller Irish/Shelta"]
["TSO",null,"Tsonga"]
["TUK",null,"Turkmen"]
["TUL",null,"Tulu"]
["TUM",null,"Tumbuka"]
["TUR",null,"Turkish"]
["UKR",null,"Ukrainian"]
["UMB",null,"Umbundu"]
["URD",null,"Urdu"]
["URH",null,"Urhobo-Isoko"]
["UYG",null,"Uyghur"]
["UZB",null,"Uzbek"]
["VEN",null,"Venda"]
["VIE",null,"Vietnamese"]
["VSY",null,"Visayan/Bisaya"]
["VSYA","VSY","Visayan/Bisaya (Any Other)"]
["VSYH","VSY","Hiligaynon"]
["VSYS","VSY","Cebuano/Sugbuanon"]
["VSYW","VSY","Waray/Binisaya"]
["WAP",null,"Wa-Paraok (South-East Asia)"]
["WCP",null,"West-African Creole Portuguese"]
["WOL",null,"Wolof"]
["WPE",null,"West-African Pidgin English"]
["XHO",null,"Xhosa"]
["YAO",null,"Yao/Chiyao (East Africa)"]
["YDI",null,"Yiddish"]
["YOR",null,"Yoruba"]
["ZND",null,"Zande"]
["ZUL",null,"Zulu"]
["ZZZ",null,"Classification Pending"]

{"sheet":"SEN Codes","index":6,"n_rows":20,"n_cols":2,"rows_kept":20,"cut":false,"hidden":true,"merged":[]}
["SEN Codes"]
[]
["Code","Description"]
["N","No SEN Provision"]
["S","Statement of SEN"]
["E","Education, Health and Care Plan"]
["K","SEN Support"]
["SPLD","Specific Learning Difficulty"]
["MLD","Moderate Learning Difficulty"]
["SLD","Severe Learning Difficulty"]
["PMLD","Profound & Multiple Learning Diff."]
["SEMH","Social, Emotional and Mental Health"]
["SLCN","Speech, Lang. & Comm. Needs"]
["ASD","Autistic Spectrum Disorder "]
["VI","Visual impairment "]
["HI","Hearing Impairment "]
["MSI","Multi-sensory Impairment "]
["PD","Physical Disability"]
["OTH","Other"]
["NSA","SEN Support but no Specialist Assessment is Needed"]

{"sheet":"Proficiency","index":7,"n_rows":8,"n_cols":2,"rows_kept":8,"cut":false,"hidden":true,"merged":[]}
["Code","Full"]
["A","New to English"]
["B","Early acquisition"]
["C","Developing competence"]
["D","Competent"]
["E","Fluent"]
["N","Not Yet Assessed"]
["N/A","Not Applicable"]